[Event "15th Arad Open 2022"]
[Site "Arad"]
[Date "2022.08.11"]
[Round "6.6"]
[White "Anghel, Iulian-Mihai"]
[Black "Ionescu, Mihai"]
[Result "1/2-1/2"]
[ECO "B12"]
[WhiteElo "2015"]
[BlackElo "2250"]
[Annotator "TA"]
[PlyCount "152"]
[EventDate "2022.08.08"]
[EventType "swiss"]
[EventCountry "ROU"]
[SourceTitle "playchess.com"]
[Source "ChessBase"]
[SourceQuality "1"]
[TimeControl "5400+30"]

{[%evp 12,152,33,28,41,35,37,19,29,17,30,36,16,0,0,-10,0,-37,-23,-81,-68,-81,-66,-65,-39,-92,-24,-18,-22,-49,27,33,35,15,30,22,23,25,25,20,27,0,0,-18,-8,-17,-13,-37,-2,-18,-30,-19,-34,-25,-8,-80,-65,-115,-120,-193,-192,-216,-185,-190,-182,-177,-166,-172,-141,-136,-109,-108,-101,-98,-80,-80,-79,-520,-520,-613,-462,-654,-602,-418,-287,-1209,-1055,-2270,-281,-2073,-281,-1401,-277,-1591,-1780,-1287,-1224,-6125,-6125,-6079,-5741,-5614,-5614,-3521,-59,-59,-59,-59,-10,-10,-10,-10,-10,-10,-10,-10,-10,-1724,-80,-91,-59,-83,-90,-138,-10,-112,-122,-189,-10,-10,-10,-10,-10,-10,-10,-10,-8,-10,-8,-8,-8,-8,8]} 1. e4 {[%emt 0:00:03]} c6 {[%emt 0:00:20]} 2. d4 {[%emt 0:00:07]} d5 {[%emt 0:00:06]} 3. e5 {[%emt 0:00:05]} Bf5 {[%emt 0:00:09]} 4. Nf3 {[%emt 0:00:11]} e6 {[%emt 0:00:12]} 5. Be2 {[%emt 0:00:26]} Nd7 {[%emt 0:00:15]} 6. Nbd2 {[%emt 0:00:21]} Ne7 {[%emt 0:00:36]} 7. O-O {[%emt 0:00:11]} Bg6 {[%emt 0:01:28] B12: Caro-Kann: Advance Variation.} 8. c4 {[%emt 0:08:04]} Nf5 {[%emt 0:04:17]} 9. Qb3 {[%emt 0:03:11]} Rb8 {[%emt 0:03:19] [#]} 10. Rd1 $146 {[%emt 0:03:59]} ({Predecessor:} 10. cxd5 cxd5 11. Qa4 a6 12. b4 Be7 13. b5 O-O 14. bxa6 Ra8 15. Ba3 Bxa3 16. Qxa3 bxa6 {1-0 (25) Handke,F (2460)-Levin,F (2501) Barcelona 2005}) 10... Be7 {[%emt 0:00:44]} 11. cxd5 {[%emt 0:02:27]} cxd5 {[%emt 0:00:07]} 12. Nf1 {[%emt 0:01:37]} O-O {[%emt 0:03:29]} 13. Bf4 {[%emt 0:02:54]} b5 {[%emt 0:03:47]} 14. Rac1 {[%emt 0:10:32]} Nb6 {[%emt 0:08:30]} 15. Qxb5 {[%emt 0:02:53]} (15. g4 $11 {remains equal.} Nh4 16. Nxh4 (16. Qxb5 $2 Nc4 $19) 16... Bxh4 17. Qh3) 15... Nc4 $1 $17 {[%emt 0:00:28]} 16. Qa6 {[%emt 0:00:28]} Nxb2 {[%emt 0:01:22]} 17. Rd2 {[%emt 0:01:40]} Qd7 {[%emt 0:03:17]} 18. Rc6 {[%emt 0:12:25] Prevents Rb6.} (18. Rdc2 $15) 18... Nc4 {[%emt 0:05:19]} (18... Rb4 $17) 19. Bxc4 $11 {[%emt 0:01:26]} dxc4 {[%emt 0:00:06]} 20. Qxc4 {[%emt 0:06:08]} Rfc8 {[%emt 0:04:11] Prevents Rc7.} (20... Bh5 $15) 21. d5 {[%emt 0:02:47]} exd5 {[%emt 0:01:06]} 22. Rxc8+ {[%emt 0:00:22]} Rxc8 {[%emt 0:00:33]} 23. Qxd5 {[%emt 0:01:51]} Qxd5 {[%emt 0:00:08]} 24. Rxd5 {[%emt 0:00:05]} Bc5 {[%emt 0:01:15]} 25. h3 {[%emt 0:08:58]} h6 {[%emt 0:01:05]} 26. g4 {[%emt 0:01:21]} Ne7 {[%emt 0:00:16]} 27. Rd1 {[%emt 0:01:35]} Be4 {[%emt 0:01:16]} 28. N3d2 {[%emt 0:00:54]} Bc2 {[%emt 0:01:20]} 29. Re1 {[%emt 0:05:56]} Bb4 {[%emt 0:01:54]} (29... Nd5 $5 {[%cal Rd5f4]} 30. Be3 Bb4 $11) 30. a3 {[%emt 0:02:28]} Bxa3 {[%emt 0:03:33]} 31. Ra1 {[%emt 0:00:58]} Rc3 $36 {[%emt 0:03:28][%mdl 2048] Black has some pressure.} 32. Ne3 {[%emt 0:01:09]} Bd3 {[%emt 0:04:13]} 33. Kg2 {[%emt 0:07:13]} (33. Nd1 $11 Rc1 34. Rxa3 Rxd1+ 35. Kh2) 33... Bc5 $17 {[%emt 0:03:10] A strong pair of Bishops.} 34. Kf3 {[%emt 0:00:53]} (34. Nd1 $15 Ra3 35. Rxa3 Bxa3 36. Nc3) 34... Bb5 {[%emt 0:02:19]} 35. Kg2 {[%emt 0:02:53]} (35. h4 $17 {was called for.}) 35... Bc6+ $19 {[%emt 0:03:01]} 36. Kh2 {[%emt 0:02:16]} g5 {[%emt 0:01:12]} 37. Bg3 {[%emt 0:00:07]} Bxe3 {[%emt 0:03:48]} 38. fxe3 {[%emt 0:00:04]} Rxe3 {[%emt 0:00:36] White must now prevent ...Re2+.} 39. Re1 {[%emt 0:00:53] Against Re2+} Rxe1 {[%emt 0:02:21]} 40. Bxe1 {[%emt 0:00:00][%mdl 4096] Endgame KBN-KBN} Ng6 {[%emt 0:00:00]} 41. Nc4 {[%emt 0:00:00]} Bd5 {[%emt 0:00:00]} 42. Ne3 {[%emt 0:00:00]} Be4 {[%emt 0:00:00]} 43. Bc3 {[%emt 0:00:00]} Kf8 {[%emt 0:00:00]} 44. Nf5 $2 {[%emt 0:00:00][%mdl 8192]} (44. Kg3 $17 {is more resistant.}) 44... Bxf5 {[%emt 0:00:00]} 45. gxf5 {[%emt 0:00:00] KB-KN} Nh4 {[%emt 0:00:00]} 46. f6 {[%emt 0:00:00]} (46. Kg3 $142 Nxf5+ 47. Kg4 Ne3+ 48. Kh5) 46... Ng6 {[%emt 0:06:04]} 47. Kg3 {[%emt 0:00:00]} h5 {[%emt 0:00:10]} 48. Bd2 $2 {[%emt 0:00:47]} (48. Kf3) 48... Nxe5 {[%emt 0:01:14]} 49. Bxg5 {[%emt 0:00:11]} Ng6 $2 {[%emt 0:01:43]} (49... Nc4 50. Kh4 a5 51. Kxh5 a4) 50. Kf3 $2 {[%emt 0:02:37]} (50. Bd2) 50... Ke8 $2 {[%emt 0:00:54]} (50... a5 51. Ke4 Ke8) 51. Ke4 $2 {[%emt 0:00:19]} (51. Bd2 Kd7 52. Bc3) 51... Kd7 $2 {[%emt 0:00:28]} (51... a5 52. Be3 a4) 52. Kf5 $2 {[%emt 0:00:57]} (52. Bd2) 52... a5 {[%emt 0:01:23][%cal Ba7a5,Ba5a4][%mdl 32]} 53. Bc1 {[%emt 0:02:43]} h4 {[%emt 0:01:20] Threatens to win with ...Kd6.} 54. Kg5 {[%emt 0:00:49]} Ke6 {[%emt 0:00:16]} 55. Bb2 {[%emt 0:00:40]} a4 {[%emt 0:00:15]} 56. Kg4 {[%emt 0:00:45]} Ne5+ {[%emt 0:05:54]} 57. Kg5 {[%emt 0:00:55]} Nd7 $2 {[%emt 0:02:04]} (57... Nc4 $19 58. Ba1 a3) 58. Kxh4 $15 {[%emt 0:02:05]} Kf5 {[%emt 0:00:10]} 59. Kg3 {[%emt 0:02:57]} Nxf6 {[%emt 0:00:09]} (59... Ne5 $1 $15 60. Bc3 Nd7) 60. Kf3 $11 {[%emt 0:00:28]} Nd5 {[%emt 0:00:45]} 61. h4 {[%emt 0:01:33]} Nb6 {[%emt 0:02:18]} 62. Ke2 {[%emt 0:00:47]} Kg4 {[%emt 0:00:23] And now ...f5 would win.} 63. Kd3 {[%emt 0:00:54]} f5 {[%emt 0:00:16][%cal Bf7f5,Bf5f4,Bf4f3][%mdl 32]} 64. Kc2 $2 {[%emt 0:00:33][%mdl 8192] [#]} (64. Bd4 $11) 64... Nc4 $2 {[%emt 0:03:16]} (64... f4 $1 $19 {is more deadly.} 65. Bd4 Nd5) 65. Bd4 $17 {[%emt 0:00:17][%cal Oh4h5]} Nd6 {[%emt 0:00:34]} ({Much weaker is} 65... Kxh4 $6 66. Kc3 $11) 66. Bf2 {[%emt 0:00:30]} f4 {[%emt 0:00:19]} 67. Kb2 {[%emt 0:00:23] [#]} Ne4 {[%emt 0:01:17]} ({Black should play} 67... Nc4+ $1 $17 68. Kc3 Ne3) 68. Be1 {[%emt 0:00:26]} (68. Bd4 $11 {keeps the balance.}) 68... f3 {[%emt 0:00:29] ...Nc5 is the strong threat.} 69. Ka3 {[%emt 0:00:25]} (69. Ka2 $17 {was necessary.}) 69... Nc5 $2 {[%emt 0:01:54]} ({Black should try} 69... Kh5 $19 70. Ka2 Kh6) 70. Bf2 $11 {[%emt 0:00:14] The position is equal.} Nd3 {[%emt 0:00:59]} 71. Bd4 {[%emt 0:00:12]} Kxh4 {[%emt 0:01:03]} 72. Kxa4 {[%emt 0:00:02]} Kg3 {[%emt 0:00:29]} 73. Kb3 {[%emt 0:00:27]} Kf4 {[%emt 0:00:24]} 74. Kc2 {[%emt 0:00:20]} Ke4 {[%emt 0:00:07]} 75. Ba7 {[%emt 0:00:32]} f2 {[%emt 0:02:41]} 76. Bxf2 $1 {[%emt 0:02:51]} Ke5 {[%emt 0:10:36] And White is the lucky defender.  Weighted Error Value: White=1.13/Black=0.60} 1/2-1/2

[Event "15th Arad Open 2022"]
[Site "Arad"]
[Date "2022.08.11"]
[Round "6.8"]
[White "Tampea, Radu"]
[Black "Veneteanu, Mihai"]
[Result "1-0"]
[ECO "D00"]
[WhiteElo "2093"]
[BlackElo "2025"]
[Annotator "NA RC"]
[PlyCount "73"]
[EventDate "2022.08.08"]
[EventType "swiss"]
[EventCountry "ROU"]
[SourceTitle "playchess.com"]
[Source "ChessBase"]
[SourceQuality "1"]
[TimeControl "5400+30"]

1. d4 {[%emt 0:00:02]} Nf6 {[%emt 0:00:07]} 2. Bf4 {[%emt 0:00:25]} d5 {[%emt 0:00:56]} 3. e3 {[%emt 0:00:41]} g6 {[%emt 0:00:10]} 4. Nc3 {[%emt 0:00:33]} Bg7 {[%emt 0:01:03]} 5. h4 {[%emt 0:00:10]} h5 {[%emt 0:01:49]} 6. Nf3 {[%emt 0:00:17]} O-O {[%emt 0:04:05]} 7. Qd2 {[%emt 0:01:05]} c5 {[%emt 0:00:57]} 8. Ne5 {[%emt 0:00:20]} Nc6 {[%emt 0:01:06]} 9. O-O-O {[%emt 0:06:59]} Bf5 {[%emt 0:20:34]} 10. Bb5 {[%emt 0:05:30]} (10. dxc5 $11 {keeps the balance.} Qa5 11. Kb1 (11. Nxd5 $2 Qxa2 12. Nxf6+ exf6 $19)) 10... Rc8 {[%emt 0:00:38]} (10... cxd4 $17 11. exd4 Nb4) 11. Bxc6 {[%emt 0:00:28]} bxc6 {[%emt 0:00:02]} 12. Na4 $2 {[%emt 0:03:03]} (12. f3 $1 $15) 12... Ne4 {[%emt 0:12:36]} 13. Qe1 $17 {[%emt 0:02:00]} f6 {[%emt 0:00:53]} 14. Nd3 {[%emt 0:08:22]} c4 {[%emt 0:01:03]} 15. Ndc5 {[%emt 0:03:04]} e5 {[%emt 0:05:47]} 16. Bh2 {[%emt 0:11:37]} exd4 {[%emt 0:08:30]} 17. Nxe4 {[%emt 0:15:11]} Bxe4 {[%emt 0:02:12]} 18. exd4 {[%emt 0:15:39]} Bh6+ {[%emt 0:02:06]} 19. Kb1 {[%emt 0:01:09]} Bxg2 {[%emt 0:04:59]} 20. Rg1 {[%emt 0:00:45]} Re8 {[%emt 0:08:32]} 21. Qc3 {[%emt 0:01:42]} Be4 {[%emt 0:00:30]} 22. Nc5 {[%emt 0:01:37]} Bf5 {[%emt 0:00:24]} 23. Qf3 {[%emt 0:09:21]} Kh7 {[%emt 0:01:16]} 24. Nb7 {[%emt 0:02:40]} Qb6 {[%emt 0:19:26]} 25. Nd6 {[%emt 0:00:09]} Bxc2+ {[%emt 0:02:46]} 26. Kxc2 {[%emt 0:01:14]} Rb8 {[%emt 0:00:04]} 27. Nxc4 {[%emt 0:02:03]} dxc4 {[%emt 0:00:52]} 28. Bxb8 {[%emt 0:00:05]} Rxb8 {[%emt 0:00:33]} 29. Qc3 {[%emt 0:00:47]} Qa6 {[%emt 0:00:30]} 30. Kb1 {[%emt 0:00:50]} f5 {[%emt 0:00:04]} 31. Rxg6 {[%emt 0:00:28]} Re8 {[%emt 0:00:56]} 32. Rgg1 {[%emt 0:00:51]} Re2 {[%emt 0:00:33]} 33. Qf3 {[%emt 0:00:15]} c3 {[%emt 0:00:29]} 34. Qxf5+ {[%emt 0:00:10]} Kh8 {[%emt 0:00:02]} 35. Qf6+ {[%emt 0:00:06]} Kh7 {[%emt 0:00:09]} 36. Qg6+ {[%emt 0:00:01]} Kh8 {[%emt 0:00:01]} 37. Qg8# {[%emt 0:00:01]} 1-0

[Event "15th Arad Open 2022"]
[Site "Arad"]
[Date "2022.08.11"]
[Round "6.9"]
[White "Paraschiv, Paul-Alexandru"]
[Black "Samu, Sorin-Mihai"]
[Result "1-0"]
[ECO "B20"]
[WhiteElo "2181"]
[BlackElo "1952"]
[Annotator "TA"]
[PlyCount "83"]
[EventDate "2022.08.08"]
[EventType "swiss"]
[EventCountry "ROU"]
[SourceTitle "playchess.com"]
[Source "ChessBase"]
[SourceQuality "1"]
[TimeControl "5400+30"]

{[%evp 9,83,0,0,0,15,4,0,2,19,27,41,49,64,59,73,31,83,86,621,86,75,78,88,42,69,47,103,102,89,99,169,176,185,183,191,192,181,202,193,190,270,166,210,199,210,194,193,198,244,245,370,366,590,590,590,590,590,590,590,590,609,617,1297,1302,1272,1254,1377,1341,1340,1318,12837,29982,29979,29980,29982,3385]} 1. e4 {[%emt 0:00:12]} c5 {[%emt 0:00:36]} 2. b3 {[%emt 0:00:27]} Nc6 {[%emt 0:00:13]} 3. Bb2 {[%emt 0:00:05]} e5 {[%emt 0:00:54]} 4. Bc4 {[%emt 0:00:05]} Nf6 {[%emt 0:00:30]} 5. d3 {[%emt 0:00:16]} Be7 {[%emt 0:00:28]} 6. Nc3 {[%emt 0:00:32] B20: Sicilian: Unusual White 2nd moves.} O-O {[%emt 0:00:14]} 7. Nge2 {[%emt 0:00:03]} d6 {[%emt 0:00:45]} 8. O-O {[%emt 0:00:59] The position is equal.} Be6 {[%emt 0:00:26]} 9. f4 {[%emt 0:00:41]} exf4 {[%emt 0:02:56]} 10. Nxf4 {[%emt 0:00:18]} Qd7 {[%emt 0:01:16]} 11. Ncd5 {[%emt 0:02:03] [#] Hoping for Nxf6+.} Ne5 {[%emt 0:00:55] [#]} 12. a4 $146 {[%emt 0:05:14]} ({Predecessor:} 12. Nxe7+ Qxe7 13. Qe1 Nxc4 14. bxc4 Nd7 15. e5 dxe5 16. Bxe5 Bxc4 17. Bc3 Qxe1 18. Rfxe1 {1-0 (41) Shengelia,D (2572)-Eggleston,D (2330) Banyoles 2007}) 12... Bd8 {[%emt 0:01:12]} (12... Nxd5 $14 13. Nxd5 (13. Bxd5 Bg5 $11) 13... Bg5) 13. Qe1 {[%emt 0:00:41]} Nxc4 $2 {[%emt 0:01:31][%mdl 8192] [#]} (13... Bxd5 $16 14. Nxd5 (14. Bxd5 Kh8 $16) 14... Nxd5) 14. bxc4 $2 {[%emt 0:00:07]} (14. dxc4 Bxd5 15. Nxd5 Nxd5 16. exd5 (16. cxd5 f6 $14) 16... Qg4 $14) (14. Nxf6+ $1 $18 {and the rest is easy.} Bxf6 15. Bxf6) 14... Bxd5 $16 {[%emt 0:01:22]} 15. cxd5 {[%emt 0:00:33]} c4 {[%emt 0:00:50]} 16. Qg3 {[%emt 0:01:25]} (16. dxc4 $6 Rc8 $11) ({White should try} 16. h3 $16) 16... Rc8 {[%emt 0:03:28]} 17. Bd4 {[%emt 0:01:30] White is more active.} Bb6 {[%emt 0:03:32] Black is on the road to losing.} (17... Qg4 $14) 18. Bxb6 {[%emt 0:00:40]} axb6 {[%emt 0:00:02]} 19. Ne2 $40 {[%emt 0:01:01][%cal Bf4e2,Be2d4,Bd4f5][%mdl 160] And now Rxf6 would win. White is out for blood.} Qe7 {[%emt 0:00:56]} (19... Qg4 $16) 20. Nd4 $18 {[%emt 0:01:11] aiming for Nf5.} Ne8 {[%emt 0:03:42]} 21. Nf5 {[%emt 0:03:37]} Qd7 {[%emt 0:01:00]} 22. Rab1 {[%emt 0:03:22]} g6 {[%emt 0:05:39]} 23. Rxb6 {[%emt 0:03:46]} cxd3 {[%emt 0:01:36]} 24. cxd3 {[%emt 0:00:21]} Rc3 {[%emt 0:02:06]} (24... Ra8 {is a better defense.} 25. h3 (25. Nxd6 Nxd6 26. Qxd6 Qxd6 $18) 25... Rxa4) 25. Rbb1 {[%emt 1:13:51] Black must now prevent e5.} (25. Nxd6 Nxd6 26. Qxd6 (26. Rxd6 Qxa4 27. h3 Qd4+ 28. Qf2 Rxd3 $14) 26... Qxa4 $14) 25... Kh8 {[%emt 0:01:18]} 26. Nd4 {[%emt 0:00:00]} Kg8 {[%emt 0:03:51]} 27. Nb5 {[%emt 0:00:00]} Rc2 {[%emt 0:00:53]} 28. h3 {[%emt 0:00:00]} Qc8 {[%emt 0:00:58]} (28... Ra2 $142 29. Rb4 Qd8) 29. Kh2 {[%emt 0:00:00]} ({Not} 29. Nxd6 Qc5+ 30. Kh2 Nxd6 $17) 29... Qc5 {[%emt 0:00:13]} (29... Qd8 {might work better.} 30. Na3 Rc7) 30. d4 {[%emt 0:00:00]} Qb6 {[%emt 0:01:13]} (30... Qc8 31. Nxd6 Nxd6) 31. Na3 {[%emt 0:00:00]} Rb2 {[%emt 0:04:54]} 32. Nc4 {[%emt 0:00:00][%csl LRb2,LRb6]} Rxb1 {[%emt 0:00:33]} 33. Nxb6 {[%emt 0:00:00]} Rxb6 {[%emt 0:02:56]} 34. a5 {[%emt 0:00:00]} Rb5 {[%emt 0:00:36]} 35. Qa3 {[%emt 0:00:00]} Kg7 {[%emt 0:00:28]} 36. Qa4 {[%emt 0:00:00]} Rb2 {[%emt 0:00:20]} 37. e5 {[%emt 0:00:00][%cal Be4e5,Be5e6][%mdl 32]} Re2 {[%emt 0:03:08]} 38. Qb5 {[%emt 0:00:00][%csl LRb7,LRe2]} Re3 {[%emt 0:01:17]} 39. e6 {[%emt 0:00:00]} Nf6 {[%emt 0:00:22]} 40. Qxb7 {[%emt 0:00:00]} Re4 {[%emt 0:00:00]} 41. a6 {[%emt 0:00:00]} Rxd4 {[%emt 0:00:00]} 42. Qb2 {[%emt 0:00:00] Weighted Error Value: White=0.29 (precise) /Black=0.51} 1-0

[Event "15th Arad Open 2022"]
[Site "Arad"]
[Date "2022.08.11"]
[Round "6.10"]
[White "Tablan, Matei-Christian"]
[Black "Kazarian, Anna-Maja"]
[Result "1/2-1/2"]
[ECO "D00"]
[WhiteElo "1928"]
[BlackElo "2139"]
[Annotator "TA"]
[PlyCount "65"]
[EventDate "2022.08.08"]
[EventType "swiss"]
[EventCountry "ROU"]
[SourceTitle "playchess.com"]
[Source "ChessBase"]
[SourceQuality "1"]
[TimeControl "5400+30"]

{[%evp 9,65,-2,0,-4,0,2,7,-22,-22,-22,-22,-22,-22,-18,-18,-28,-16,-35,-30,-24,-29,-74,-16,-26,-24,-44,-27,-29,-16,-115,-58,-89,-30,-30,-30,-40,0,0,0,0,0,0,0,0,0,0,0,0,0,0,0,0,0,0,0,0,0,0]} 1. d4 {[%emt 0:00:03]} Nf6 {[%emt 0:00:16]} 2. Bg5 {[%emt 0:00:12]} e6 {[%emt 0:02:54]} 3. Nd2 {[%emt 0:00:43]} d5 {[%emt 0:00:58]} 4. e3 {[%emt 0:00:46]} c5 {[%emt 0:01:48]} 5. c3 {[%emt 0:00:27]} Nbd7 {[%emt 0:04:04]} 6. f4 {[%emt 0:01:59] D00: 1 d4 d5: Unusual lines.} Bd6 {[%emt 0:07:02]} 7. Bd3 {[%emt 0:13:39]} h6 {[%emt 0:03:36]} 8. Bxf6 {[%emt 0:02:05]} Nxf6 {[%emt 0:04:01]} 9. Ngf3 {[%emt 0:02:39]} Qb6 {[%emt 0:00:37]} 10. Rb1 {[%emt 0:02:09]} cxd4 {[%emt 0:06:56]} 11. cxd4 {[%emt 0:00:12]} Bd7 {[%emt 0:05:57] [#]} 12. O-O $146 {[%emt 0:05:02]} ({Predecessor:} 12. Qe2 a6 13. O-O Bb5 14. Ne5 O-O 15. Rfc1 Rfc8 16. a3 Bxd3 17. Nxd3 Qb5 18. Kf1 {1-0 (69) Puranen,J (2340)-Lokotar,E (2330) Helsinki 1993}) 12... Bb5 {[%emt 0:03:21]} 13. Qb3 {[%emt 0:07:53]} Bxd3 {[%emt 0:00:30]} 14. Qxd3 {[%emt 0:00:05]} O-O {[%emt 0:02:55]} 15. Ne5 {[%emt 0:05:51]} Bb4 {[%emt 0:06:07]} (15... Rfc8 $17) 16. Ndf3 {[%emt 0:03:16]} Rfc8 {[%emt 0:01:10]} 17. g4 {[%emt 0:05:17]} Ne4 {[%emt 0:03:33]} 18. g5 {[%emt 0:05:27]} Qc7 {[%emt 0:21:14]} 19. g6 {[%emt 0:27:41]} (19. Qd1 $11 {remains equal.}) 19... fxg6 {[%emt 0:04:26]} ({Black should play} 19... f6 $17 20. Ng4 Qc2) 20. Qb5 {[%emt 0:02:52]} Qb6 {[%emt 0:05:24]} (20... Bd2 $17 21. Nxd2 Nxd2) 21. Qe2 $11 {[%emt 0:09:04]} Qd8 {[%emt 0:07:02]} 22. Qg2 {[%emt 0:00:26]} g5 {[%emt 0:01:23]} 23. Qg4 {[%emt 0:01:28] The position is equal.} Qe7 {[%emt 0:01:38]} 24. fxg5 {[%emt 0:00:26]} Nxg5 {[%emt 0:00:17]} 25. Ng6 {[%emt 0:00:53]} Nxf3+ {[%emt 0:00:58]} 26. Rxf3 {[%emt 0:00:02]} Qg5 {[%emt 0:00:23]} 27. Qxg5 {[%emt 0:00:06]} hxg5 {[%emt 0:00:01]} 28. Rh3 {[%emt 0:00:07] [#] White threatens Rf1 and mate.} Kf7 $1 {[%emt 0:02:09]} 29. Ne5+ {[%emt 0:00:06]} Kg8 {[%emt 0:02:36]} 30. Ng6 {[%emt 0:00:50] Intending Rf1 and mate.} Kf7 $1 {[%emt 0:00:03]} 31. Ne5+ {[%emt 0:00:04]} Kg8 {[%emt 0:00:22]} 32. Ng6 {[%emt 0:00:05] [#] Rf1 would kill now.} Kf7 $1 {[%emt 0:00:09]} 33. Ne5+ {[%emt 0:00:05] Weighted Error Value: White=0.14 (very precise) /Black=0.11 (very precise)} 1/2-1/2

[Event "15th Arad Open 2022"]
[Site "Arad"]
[Date "2022.08.11"]
[Round "6.11"]
[White "Magold, Victor"]
[Black "Ciocani, Iosif"]
[Result "1/2-1/2"]
[ECO "E11"]
[WhiteElo "2074"]
[BlackElo "2012"]
[Annotator "NA RC"]
[PlyCount "62"]
[EventDate "2022.08.08"]
[EventType "swiss"]
[EventCountry "ROU"]
[SourceTitle "playchess.com"]
[Source "ChessBase"]
[SourceQuality "1"]
[TimeControl "5400+30"]

1. d4 {[%emt 0:00:03]} Nf6 {[%emt 0:00:06]} 2. Nf3 {[%emt 0:00:11]} e6 {[%emt 0:00:07]} 3. c4 {[%emt 0:00:08]} Bb4+ {[%emt 0:00:07]} 4. Bd2 {[%emt 0:00:25]} Bxd2+ {[%emt 0:01:29]} 5. Nbxd2 {[%emt 0:01:28]} d6 {[%emt 0:01:02]} 6. g3 {[%emt 0:00:33]} O-O {[%emt 0:01:10]} 7. Bg2 {[%emt 0:00:01]} Re8 {[%emt 0:01:47]} 8. O-O {[%emt 0:00:24]} e5 {[%emt 0:00:15]} 9. dxe5 {[%emt 0:10:34]} dxe5 {[%emt 0:00:15]} 10. Nb3 {[%emt 0:00:13]} Qe7 {[%emt 0:02:24]} 11. Qc2 {[%emt 0:01:38]} Nc6 {[%emt 0:15:19]} 12. Rac1 {[%emt 0:04:37]} (12. Rad1 $15) 12... e4 {[%emt 0:07:09]} (12... Nb4 $15 13. Qb1 a5) 13. Nfd4 {[%emt 0:02:03]} Nb4 {[%emt 0:05:05]} 14. Qb1 $1 {[%emt 0:00:23]} c5 {[%emt 0:05:00]} 15. Nc2 {[%emt 0:05:05]} (15. a3 $15) 15... Nxc2 {[%emt 0:05:17]} 16. Qxc2 {[%emt 0:00:54]} Bf5 {[%emt 0:09:00]} 17. Qc3 {[%emt 0:06:47]} Rad8 {[%emt 0:03:08]} 18. Rcd1 {[%emt 0:01:50]} b6 {[%emt 0:01:34]} 19. Na1 {[%emt 0:09:31]} Bg4 {[%emt 0:10:07]} 20. Rxd8 {[%emt 0:15:00]} Rxd8 {[%emt 0:06:56]} 21. Re1 {[%emt 0:00:08]} Qd7 {[%emt 0:02:01]} 22. f3 {[%emt 0:16:28]} exf3 {[%emt 0:05:36]} 23. exf3 $17 {[%emt 0:00:04]} Be6 {[%emt 0:00:17]} 24. Bf1 {[%emt 0:02:10]} Qd2 {[%emt 0:01:28]} 25. Nc2 {[%emt 0:02:37]} Qxc3 {[%emt 0:05:52]} 26. bxc3 {[%emt 0:00:03]} Rd2 {[%emt 0:07:02]} 27. Re2 {[%emt 0:00:11]} Rd1 {[%emt 0:00:05]} 28. Re1 {[%emt 0:00:03]} Rxe1 {[%emt 0:01:53]} 29. Nxe1 {[%emt 0:00:03]} Nd7 {[%emt 0:00:05]} 30. f4 {[%emt 0:00:13]} Nf6 {[%emt 0:00:54]} 31. Bd3 {[%emt 0:00:25]} g6 {[%emt 0:01:37]} 1/2-1/2

[Event "15th Arad Open 2022"]
[Site "Arad"]
[Date "2022.08.11"]
[Round "6.12"]
[White "Capragiu, Matei-Stefan"]
[Black "Coicev, Matei-Andrei"]
[Result "0-1"]
[ECO "A73"]
[WhiteElo "1925"]
[BlackElo "2087"]
[Annotator "NA RC"]
[PlyCount "70"]
[EventDate "2022.08.08"]
[EventType "swiss"]
[EventCountry "ROU"]
[SourceTitle "playchess.com"]
[Source "ChessBase"]
[SourceQuality "1"]
[TimeControl "5400+30"]

1. d4 {[%emt 0:00:03]} Nf6 {[%emt 0:00:26]} 2. c4 {[%emt 0:00:06]} g6 {[%emt 0:00:22]} 3. Nc3 {[%emt 0:00:24]} Bg7 {[%emt 0:01:03]} 4. e4 {[%emt 0:00:21]} d6 {[%emt 0:00:55]} 5. Be2 {[%emt 0:00:13]} O-O {[%emt 0:00:59]} 6. Nf3 {[%emt 0:00:12]} c5 {[%emt 0:01:42]} 7. d5 {[%emt 0:00:15]} Bg4 {[%emt 0:04:16]} 8. Nd2 {[%emt 0:00:54]} Bxe2 {[%emt 0:02:17]} 9. Qxe2 {[%emt 0:00:23]} e6 {[%emt 0:01:34]} 10. O-O {[%emt 0:00:25]} exd5 {[%emt 0:01:07]} 11. cxd5 {[%emt 0:00:11]} Re8 {[%emt 0:03:46]} 12. f3 {[%emt 0:02:33]} Nbd7 {[%emt 0:02:42]} 13. Nc4 {[%emt 0:01:17]} Nb6 {[%emt 0:00:56]} 14. Nxb6 {[%emt 0:10:54]} Qxb6 {[%emt 0:00:57]} 15. Qb5 {[%emt 0:01:04] [#]} (15. a4 $11 {remains equal.}) 15... Nxd5 $1 {[%emt 0:01:22]} 16. Qc4 {[%emt 0:03:29]} ({Don't go for} 16. exd5 $2 Bxc3 17. Qxb6 Bd4+ 18. Kh1 axb6 $19) (16. Qxb6 $17 Nxb6 17. Rd1) 16... Nxc3 {[%emt 0:07:08]} 17. bxc3 {[%emt 0:00:07] [#]} Qa5 $1 {[%emt 0:00:56]} 18. Rb1 {[%emt 0:02:24]} Qxc3 {[%emt 0:05:16]} 19. Qxc3 {[%emt 0:00:23]} Bxc3 {[%emt 0:00:02]} 20. Rxb7 {[%emt 0:00:25]} Bd4+ {[%emt 0:00:10]} 21. Kh1 {[%emt 0:00:05]} Rab8 {[%emt 0:02:10]} 22. Rd7 {[%emt 0:02:32]} Red8 $19 {[%emt 0:01:15]} (22... Rb1 $142 23. Rxd6 Ra1) 23. Rxa7 {[%emt 0:03:17]} Rb1 {[%emt 0:00:41]} 24. Ra4 {[%emt 0:00:06]} Rdb8 {[%emt 0:00:52]} 25. g3 {[%emt 0:02:35]} Ra1 {[%emt 0:02:35]} 26. Kg2 {[%emt 0:01:01]} Rb4 {[%emt 0:03:25]} 27. Ra6 {[%emt 0:04:34]} h5 {[%emt 0:03:44]} 28. Be3 {[%emt 0:01:35]} Rb2+ {[%emt 0:01:26]} 29. Rf2 {[%emt 0:00:06]} Rg1+ {[%emt 0:00:10]} 30. Kh3 {[%emt 0:00:49]} Rxf2 {[%emt 0:00:21]} 31. Bxf2 {[%emt 0:00:06]} Bxf2 {[%emt 0:00:06]} 32. Rxd6 {[%emt 0:00:02]} Bd4 {[%emt 0:00:33]} 33. f4 {[%emt 0:00:42]} Ra1 {[%emt 0:00:42]} 34. Ra6 {[%emt 0:00:08]} c4 {[%emt 0:00:24]} 35. Ra4 {[%emt 0:00:04]} c3 {[%emt 0:51:40]} 0-1